fUSD/lending_fUSD_20240804
["ID","MTS","AMOUNT","RATE_DAILY","PERIOD"]
[334118946,1722784278846,-316.86767354,0.00023178,9]
[334118947,1722784279425,-500.0,0.00023013,9]
[334118948,1722784279439,-636.02966069,0.00023013,9]
[334118949,1722784279454,-183.13232646,0.00023178,9]
[334118950,1722784279464,-500.94035655,0.00023178,9]
[334118951,1722784279475,-500.0,0.00023178,9]
[334118952,1722784279485,-500.0,0.00023178,9]
[334118953,1722784279495,-500.0,0.00023178,9]
[334118954,1722784279506,-500.0,0.00023178,9]
[334118955,1722784279516,-500.0,0.00023178,9]
[334118956,1722784279528,-500.0,0.00023178,9]
[334118957,1722784279538,-500.0,0.00023178,9]
[334118958,1722784279549,-500.0,0.00023178,9]
[334118959,1722784279559,-500.0,0.00023178,9]
[334118960,1722784279569,-500.0,0.00023178,9]
[334118961,1722784279580,-500.0,0.00023178,9]
[334118962,1722784279591,-500.0,0.00023178,9]
[334118963,1722784279601,-500.0,0.00023178,9]
[334118964,1722784279611,-983.91,0.00023178,9]
[334118965,1722784279621,-500.0,0.00023178,9]
[334118966,1722784279631,-500.0,0.00023178,9]
[334118967,1722784279641,-500.0,0.00023178,9]
[334118968,1722784279651,-500.0,0.00023178,9]
[334118969,1722784279662,-500.0,0.00023178,9]
[334118970,1722784279671,-500.0,0.00023178,9]
[334118971,1722784279682,-500.0,0.00023178,9]
[334118972,1722784279692,-500.0,0.00023178,9]
[334118973,1722784279702,-500.0,0.00023178,9]
[334118974,1722784279712,-500.0,0.00023178,9]
[334118975,1722784279722,-500.0,0.00023178,9]
[334118976,1722784279732,-500.0,0.00023178,9]
[334118977,1722784279743,-500.0,0.00023178,9]
[334118978,1722784279753,-500.0,0.00023178,9]
[334118979,1722784279763,-500.0,0.00023178,9]
[334118980,1722784279774,-500.0,0.00023178,9]
[334118981,1722784279784,-500.0,0.00023178,2]
[334118982,1722784279794,-746.58,0.00023178,9]
[334118983,1722784279804,-529.08827243,0.00023178,9]
[334118984,1722784279818,-5.9866345,0.00023178,9]
[334118985,1722784279828,-500.0,0.00023178,9]
[334118986,1722784279838,-500.0,0.00023178,9]
[334118987,1722784279848,-500.0,0.00023178,9]
[334118988,1722784279877,-500.0,0.00023178,9]
[334118989,1722784279887,-500.0,0.00023178,9]
[334118990,1722784279897,-500.0,0.00023178,9]
[334118991,1722784279907,-500.0,0.00023178,9]
[334118992,1722784279917,-500.0,0.00023178,9]
[334118993,1722784279928,-500.0,0.00023178,9]
[334118994,1722784279938,-500.0,0.00023178,9]
[334118995,1722784279949,-500.88219054,0.00023178,9]
[334118996,1722784279959,-500.0,0.00023178,9]
[334118997,1722784279969,-587.55,0.00023178,9]
[334118998,1722784279980,-500.0,0.00023178,9]
[334118999,1722784279990,-500.88649692,0.00023178,9]
[334119000,1722784280271,-569.78,0.00023178,9]
[334119001,1722784280281,-500.0,0.00023178,9]
[334119002,1722784280290,-500.0,0.00023178,9]
[334119003,1722784280300,-500.0,0.00023178,9]
[334119004,1722784280310,-500.0,0.00023178,9]
[334119005,1722784280319,-79.88269548,0.00023178,9]
[334119006,1722784280331,-420.11730452,0.00023178,9]
[334119007,1722784280340,-500.0,0.00023178,9]
[334119008,1722784280350,-500.0,0.00023178,9]
[334119009,1722784280378,-858.43827674,0.00023178,9]
[334119010,1722784280407,-141.56172326,0.00023178,9]
[334119011,1722784280416,-250.42685048,0.00023178,9]
[334119012,1722784280427,-249.57314952,0.00023178,9]
[334119013,1722784280442,-500.0,0.00023178,9]
[334119014,1722784280452,-440.42685048,0.00023178,9]
[334119015,1722784280464,-59.57314952,0.00023178,9]
[334119016,1722784280473,-500.0,0.00023178,9]
[334119017,1722784280483,-500.0,0.00023178,9]
[334119018,1722784280492,-500.0,0.00023178,9]
[334119019,1722784280501,-500.0,0.00023178,9]
[334119020,1722784280511,-500.0,0.00023178,9]
[334119021,1722784280522,-500.0,0.00023178,9]
[334119022,1722784280533,-500.0,0.00023178,9]
[334119023,1722784280543,-500.0,0.00023178,9]
[334119024,1722784280553,-271.02311524,0.00023178,9]
[334119025,1722784280765,-228.97688476,0.00023178,9]
[334119026,1722784280774,-200.0,0.00023178,7]
[334119027,1722784280783,-486.45647023,0.00023178,9]
[334119028,1722784280803,-1207.933025,0.00023013,7]
[334119029,1722784280813,-13.54352977,0.00023178,9]
[334119030,1722784280822,-500.0,0.00023178,9]
[334119031,1722784280832,-500.0,0.00023178,9]
[334119032,1722784280841,-500.0,0.00023178,9]
[334119033,1722784280857,-500.0,0.00023178,9]
[334119034,1722784280878,-500.0,0.00023178,9]
[334119035,1722784280888,-500.0,0.00023178,9]
[334119036,1722784280897,-224.86,0.00023178,9]
[334119037,1722784280907,-500.0,0.00023178,9]
[334119038,1722784280916,-500.0,0.00023178,9]
[334119039,1722784280926,-500.0,0.00023178,9]
[334119040,1722784280936,-500.0,0.00023178,9]
[334119041,1722784280946,-500.0,0.00023178,9]
[334119042,1722784280956,-213.66344525,0.00023178,9]
[334119043,1722784280968,-286.33655475,0.00023178,9]
[334119044,1722784280978,-500.0,0.00023178,9]
[334119045,1722784280988,-656.64,0.00023178,9]
[334119046,1722784280998,-500.0,0.00023178,9]
[334119047,1722784281008,-703.44,0.00023178,9]
[334119048,1722784281018,-500.0,0.00023178,9]
[334119049,1722784281028,-500.0,0.00023178,9]
[334119050,1722784281038,-500.82170802,0.00023178,9]
[334119051,1722784281048,-500.0,0.00023178,9]
[334119052,1722784281058,-500.0,0.00023178,9]
[334119053,1722784281068,-500.0,0.00023178,9]
[334119054,1722784281078,-500.0,0.00023178,9]
[334119055,1722784281087,-57.36173727,0.00023178,9]
[334119056,1722784281100,-442.63826273,0.00023178,9]
[334119057,1722784281109,-523.05136327,0.00023178,9]
[334119058,1722784281120,-51.36863673,0.00023178,9]
[334119059,1722784281129,-388.76362031,0.00023178,9]
[334119060,1722784281141,-111.23637969,0.00023178,9]
[334119061,1722784281151,-500.0,0.00023178,9]
[334119062,1722784281160,-500.0,0.00023178,9]
[334119063,1722784281170,-500.0,0.00023178,9]
[334119064,1722784281179,-500.0,0.00023178,9]
[334119065,1722784281189,-474.88713516,0.00023178,9]
[334119066,1722784281201,-25.11286484,0.00023178,9]
[334119067,1722784281211,-500.0,0.00023178,9]
[334119068,1722784281221,-222.79623156,0.00023178,9]
[334119069,1722784281232,-277.20376844,0.00023178,9]
[334119070,1722784281243,-500.0,0.00023178,9]
[334119071,1722784281252,-500.0,0.00023178,9]
[334119072,1722784281262,-500.0,0.00023178,9]
[334119073,1722784281272,-500.0,0.00023178,9]
[334119074,1722784281281,-500.0,0.00023178,9]
[334119075,1722784281290,-500.0,0.00023178,9]
[334119076,1722784281300,-500.0,0.00023178,9]
[334119077,1722784281310,-500.0,0.00023178,9]
[334119078,1722784281320,-509.7,0.00023178,9]
[334119079,1722784281330,-500.0,0.00023178,9]
[334119080,1722784281339,-500.0,0.00023178,9]
[334119081,1722784281349,-556.22,0.00023178,9]
[334119082,1722784281366,-500.0,0.00023178,9]
[334119083,1722784281385,-179.29825433,0.00023178,9]
[334119084,1722784281397,-320.70174567,0.00023178,9]
[334119085,1722784281406,-500.0,0.00023178,9]
[334119086,1722784281416,-500.0,0.00023178,9]
[334119087,1722784281426,-500.0,0.00023178,9]
[334119088,1722784281437,-500.0,0.00023178,9]
[334119089,1722784281449,-705.19,0.00023178,9]
[334119090,1722784281461,-500.0,0.00023178,9]
[334119091,1722784281471,-500.0,0.00023178,9]
[334119092,1722784281481,-500.0,0.00023178,9]
[334119093,1722784281491,-500.0,0.00023178,9]
[334119094,1722784281503,-500.0,0.00023178,9]
[334119095,1722784281513,-500.0,0.00023178,9]
[334119096,1722784281525,-290.35660351,0.00023178,9]
[334119097,1722784281535,-500.0,0.00023178,9]
[334119098,1722784281545,-666.7,0.00023178,9]
[334119099,1722784281554,-500.0,0.00023178,9]
[334119100,1722784281564,-553.76,0.00023178,9]
[334119101,1722784281574,-500.0,0.00023178,9]
[334119102,1722784281584,-500.0,0.00023178,9]
[334119103,1722784281593,-500.0,0.00023178,9]
[334119104,1722784281603,-500.0,0.00023178,9]
[334119105,1722784281613,-500.0,0.00023178,9]
[334119106,1722784281623,-500.0,0.00023178,9]
[334119107,1722784281632,-500.0,0.00023178,9]
[334119108,1722784281642,-500.0,0.00023178,2]
[334119109,1722784281652,-500.0,0.00023178,9]
[334119110,1722784281662,-500.0,0.00023178,9]
[334119111,1722784281671,-500.0,0.00023178,9]
[334119112,1722784281681,-500.0,0.00023178,9]
[334119113,1722784281690,-700.46,0.00023178,9]
[334119114,1722784281700,-500.0,0.00023178,9]
[334119115,1722784281710,-500.0,0.00023178,9]
[334119116,1722784281719,-500.0,0.00023178,9]
[334119117,1722784281729,-500.0,0.00023178,9]
[334119118,1722784281738,-500.0,0.00023178,9]
[334119119,1722784281747,-500.0,0.00023178,9]
[334119120,1722784281757,-1206.48,0.00023178,9]
[334119121,1722784281767,-680.06,0.00023178,9]
[334119122,1722784281776,-500.0,0.00023178,9]
[334119123,1722784281785,-500.0,0.00023178,9]
[334119124,1722784281795,-500.0,0.00023178,9]
[334119125,1722784281804,-500.0,0.00023178,9]
[334119126,1722784281814,-500.0,0.00023178,9]
[334119127,1722784281823,-500.0,0.00023178,9]
[334119128,1722784281833,-500.0,0.00023178,9]
[334119129,1722784281842,-500.0,0.00023178,9]
[334119130,1722784281851,-500.0,0.00023178,9]
[334119131,1722784281867,-500.0,0.00023178,9]
[334119132,1722784281886,-365.15838953,0.00023178,9]
[334119133,1722784281900,-239.07161047,0.00023178,9]
[334119134,1722784281909,-500.0,0.00023178,9]
[334119135,1722784281919,-500.0,0.00023178,9]
[334119136,1722784281928,-500.0,0.00023178,9]
[334119137,1722784281937,-127.18114153,0.00023178,9]
[334119138,1722784281949,-372.81885847,0.00023178,9]
[334119139,1722784281960,-500.0,0.00023178,9]
[334119140,1722784281970,-500.0,0.00023178,9]
[334119141,1722784281980,-500.0,0.00023178,9]
[334119142,1722784281990,-860.15,0.00023178,9]
[334119143,1722784281999,-837.76,0.00023178,9]
[334119144,1722784282008,-500.0,0.00023178,9]
[334119145,1722784282017,-500.0,0.00023178,9]
[334119146,1722784282026,-500.0,0.00023178,9]
[334119147,1722784282036,-500.0,0.00023178,9]
[334119148,1722784282045,-244.27114166,0.00023178,9]
[334119149,1722784282057,-255.72885834,0.00023178,9]
[334119150,1722784282066,-500.0,0.00023178,9]
[334119151,1722784282076,-500.0,0.00023178,9]
[334119152,1722784282085,-394.35765221,0.00023178,9]
[334119153,1722784282095,-500.0,0.00023178,9]
[334119154,1722784282105,-500.0,0.00023178,9]
[334119155,1722784282114,-500.0,0.00023178,9]
[334119156,1722784282124,-479.26989465,0.00023178,9]
[334119157,1722784282133,-770.99,0.00023178,9]
[334119158,1722784282143,-500.0,0.00023178,9]
[334119159,1722784282153,-500.0,0.00023178,9]
[334119160,1722784282163,-500.0,0.00023178,9]
[334119161,1722784282173,-500.0,0.00023178,9]
[334119162,1722784282183,-502.09424103,0.00023178,9]
[334119163,1722784282193,-500.0,0.00023178,9]
[334119164,1722784282203,-510.78,0.00023178,9]
[334119165,1722784282213,-500.0,0.00023178,9]
[334119166,1722784282222,-500.0,0.00023178,9]
[334119167,1722784282232,-500.0,0.00023178,9]
[334119168,1722784282242,-500.0,0.00023178,9]
[334119169,1722784282252,-500.0,0.00023178,9]
[334119170,1722784282262,-500.0,0.00023178,9]
[334119171,1722784282272,-598.14,0.00023178,9]
[334119172,1722784282281,-408.83935376,0.00023178,9]
[334119173,1722784283254,-567.04200336,0.00011959,2]
[334119174,1722784283266,-711.38074383,0.00011959,2]
[334119175,1722784283278,-58.3790555,0.00011959,2]
[334119176,1722784283288,-255.00517776,0.00013378,2]
[334119177,1722784283297,-236.4723607,0.00013479,2]
[334119178,1722784283306,-500.0,0.00023013,9]
[334119179,1722784283315,-500.0,0.00023013,9]
[334119180,1722784283324,-200.05914712,0.00023095,7]
[334119181,1722784283336,-279.82539136,0.00023095,7]
[334119182,1722784283348,-728.04848652,0.00023095,7]
[334119183,1722784283358,-1207.933025,0.00023095,7]
[334119184,1722784283367,-759.86683088,0.00023095,7]
[334119185,1722784283402,-448.06619412,0.00023095,7]
[334119186,1722784283412,-500.50181182,0.00023095,9]
[334119187,1722784283423,-91.16064624,0.00023178,9]
[334119188,1722784283433,-936.51,0.00023178,9]
[334119189,1722784283448,-669.57,0.00023178,9]
[334119190,1722784283460,-500.0,0.00023178,9]
[334119191,1722784283470,-500.0,0.00023178,9]
[334119192,1722784283481,-500.0,0.00023178,9]
[334119193,1722784283490,-500.0,0.00023178,9]
[334119194,1722784283500,-500.0,0.00023178,9]
[334119195,1722784283509,-240.41,0.00023178,9]
[334119196,1722784283519,-500.0,0.00023178,9]
[334119197,1722784283531,-500.0,0.00023178,9]
[334119198,1722784283540,-500.0,0.00023178,9]
[334119199,1722784283550,-500.0,0.00023178,9]
[334119200,1722784283559,-500.0,0.00023178,9]
[334119201,1722784283569,-500.0,0.00023178,9]
[334119202,1722784283578,-500.0,0.00023178,9]
[334119203,1722784283587,-500.0,0.00023178,9]
[334119204,1722784283597,-500.0,0.00023178,9]
[334119205,1722784283606,-500.0,0.00023178,9]
[334119206,1722784283616,-291.05911749,0.00023178,9]
[334119207,1722784283629,-29.46696812,0.00023178,9]
[334119208,1722784283638,-151.0,0.00023178,7]
[334119209,1722784283648,-269.572612,0.00023178,7]
[334119210,1722784283658,-500.0,0.00023178,9]
[334119211,1722784283668,-500.0,0.00023178,9]
[334119212,1722784283678,-513.11,0.00023178,9]
[334119213,1722784283688,-361.9745506,0.00023178,9]
[334119214,1722784283698,-500.0,0.00023178,9]
[334119215,1722784283707,-500.0,0.00023178,9]
[334119216,1722784283717,-500.0,0.00023178,9]
[334119217,1722784283727,-500.0,0.00023178,9]
[334119218,1722784283736,-500.0,0.00023178,9]
[334119219,1722784283745,-500.0,0.00023178,9]
[334119220,1722784283755,-500.0,0.00023178,9]
[334119221,1722784283764,-1969.77,0.00023178,9]
[334119222,1722784283774,-760.45,0.00023178,9]
[334119223,1722784283783,-500.0,0.00023178,9]
[334119224,1722784283793,-500.0,0.00023178,9]
[334119225,1722784283804,-500.0,0.00023178,9]
[334119226,1722784283814,-500.0,0.00023178,9]
[334119227,1722784283825,-991.83,0.00023178,9]
[334119228,1722784283835,-500.0,0.00023178,9]
[334119229,1722784283845,-500.0,0.00023178,9]
[334119230,1722784283856,-500.0,0.00023178,9]
[334119231,1722784283866,-500.0,0.00023178,9]
[334119232,1722784283876,-500.0,0.00023178,9]
[334119233,1722784283886,-500.0,0.00023178,9]
[334119234,1722784283895,-500.0,0.00023178,9]
[334119235,1722784283923,-500.0,0.00023178,9]
[334119236,1722784283933,-500.0,0.00023178,9]
[334119237,1722784283943,-500.0,0.00023178,9]
[334119238,1722784283952,-500.0,0.00023178,9]
[334119239,1722784283962,-500.0,0.00023178,9]
[334119240,1722784283972,-500.0,0.00023178,9]
[334119241,1722784283982,-500.0,0.00023178,9]
[334119242,1722784283992,-1284.16,0.00023178,9]
[334119243,1722784284001,-500.0,0.00023178,9]
[334119244,1722784284011,-500.0,0.00023178,9]
[334119245,1722784284021,-11.38809961,0.00023178,9]
[334119246,1722784284138,-608.64602324,0.00023178,9]
[334119247,1722784284148,-500.0,0.00023178,9]
[334119248,1722784284157,-500.0,0.00023178,9]
[334119249,1722784284167,-500.0,0.00023178,9]
[334119250,1722784284178,-463.36632676,0.00023178,9]
[334119251,1722784284190,-105.94367324,0.00023178,9]
[334119252,1722784284201,-489.76748999,0.00023178,9]
[334119253,1722784284231,-11.70626617,0.00023178,9]
[334119254,1722784284242,-500.0,0.00023178,9]
[334119255,1722784284252,-500.0,0.00023178,9]
[334119256,1722784284262,-183.48773383,0.00023178,9]
[334119257,1722784284274,-316.51226617,0.00023178,9]
[334119258,1722784284283,-500.0,0.00023178,9]
[334119259,1722784284293,-395.48773383,0.00023178,9]
[334119260,1722784284305,-205.53088166,0.00023178,9]
[334119261,1722784284315,-500.0,0.00023178,9]
[334119262,1722784284324,-39.72043718,0.00023178,9]
[334119263,1722784284336,-460.27956282,0.00023178,9]
[334119264,1722784284346,-500.0,0.00023178,9]
[334119265,1722784284356,-142.81777222,0.00023178,9]
[334119266,1722784284368,-357.18222778,0.00023178,9]
[334119267,1722784284379,-854.99,0.00023178,9]
[334119268,1722784284389,-500.0,0.00023178,9]
[334119269,1722784284399,-615.56,0.00023178,9]
[334119270,1722784284409,-500.0,0.00023178,9]
[334119271,1722784284433,-500.0,0.00023178,9]
[334119272,1722784284443,-500.0,0.00023178,9]
[334119273,1722784284457,-500.0,0.00023178,9]
[334119274,1722784284467,-501.57560975,0.00023178,9]
[334119275,1722784284478,-622.09,0.00023178,9]
[334119276,1722784284489,-500.0,0.00023178,9]
[334119277,1722784284499,-500.0,0.00023178,9]
[334119278,1722784284509,-500.0,0.00023178,9]
[334119279,1722784284519,-359.19562076,0.00023178,9]
[334119280,1722784284533,-10563.73437924,0.00023178,9]
[334119281,1722784284545,-500.0,0.00023178,9]
[334119282,1722784284554,-501.33683497,0.00023178,9]
[334119283,1722784284564,-500.0,0.00023178,9]
[334119284,1722784284575,-638.91,0.00023178,9]
[334119285,1722784284585,-500.0,0.00023178,9]
[334119286,1722784284594,-500.0,0.00023178,9]
[334119287,1722784284604,-500.0,0.00023178,9]
[334119288,1722784284613,-380.56921228,0.00023178,9]
[334119289,1722784284623,-500.0,0.00023178,9]
[334119290,1722784284632,-500.0,0.00023178,9]
[334119291,1722784284641,-500.0,0.00023178,9]
[334119292,1722784284651,-500.0,0.00023178,9]
[334119293,1722784284660,-500.0,0.00023178,9]
[334119294,1722784284669,-500.0,0.00023178,9]
[334119295,1722784284679,-500.0,0.00023178,9]
[334119296,1722784284689,-500.0,0.00023178,9]
[334119297,1722784284700,-500.0,0.00023178,9]
[334119298,1722784284709,-500.0,0.00023178,9]
[334119299,1722784284720,-500.0,0.00023178,9]
[334119300,1722784284730,-500.0,0.00023178,9]
[334119301,1722784284740,-655.13,0.00023178,9]
[334119302,1722784284751,-500.0,0.00023178,9]
[334119303,1722784284762,-500.0,0.00023178,9]
[334119304,1722784284772,-151.0,0.00023178,7]
[334119305,1722784284782,-1509.3195735,0.00023178,9]
[334119306,1722784284795,-349.99877428,0.00023178,9]
[334119307,1722784284808,-493.706,0.00023178,9]
[334119308,1722784284820,-1235.87774031,0.00023178,9]
[334119309,1722784284832,-506.95791191,0.00023178,9]
[334119310,1722784284842,-493.04208809,0.00023178,9]
[334119311,1722784284855,-6.95791191,0.00023178,9]
[334119312,1722784284865,-151.0,0.00023178,7]
[334119313,1722784284875,-557.06490633,0.00023178,9]
[334119314,1722784284886,-500.0,0.00023178,9]
[334119315,1722784284896,-276.96982176,0.00023178,9]
[334119316,1722784284909,-223.03017824,0.00023178,9]
[334119317,1722784284919,-41.57234472,0.00023178,9]
[334119318,1722784284931,-789.47765528,0.00023178,9]
[334119319,1722784284942,-500.0,0.00023178,9]
[334119320,1722784284972,-374.87748525,0.00023178,9]
[334119321,1722784284984,-53.32251475,0.00023178,9]
[334119322,1722784284994,-213.06,0.00023178,9]
[334119323,1722784285003,-819.94783503,0.00023178,9]
[334119324,1722784285015,-339.32216497,0.00023178,9]
[334119325,1722784285027,-500.0,0.00023178,9]
[334119326,1722784285037,-500.0,0.00023178,9]
[334119327,1722784285047,-500.0,0.00023178,9]
[334119328,1722784285058,-500.0,0.00023178,9]
[334119329,1722784285068,-500.0,0.00023178,9]
[334119330,1722784285079,-527.86072947,0.00023178,9]
[334119331,1722784285089,-500.0,0.00023178,9]
[334119332,1722784285099,-500.0,0.00023178,9]
[334119333,1722784285110,-500.0,0.00023178,9]
[334119334,1722784285120,-500.0,0.00023178,9]
[334119335,1722784285130,-500.0,0.00023178,9]
[334119336,1722784285140,-500.0,0.00023178,9]
[334119337,1722784285150,-500.0,0.00023178,9]
[334119338,1722784285160,-601.65897127,0.00023178,9]
[334119339,1722784285171,-9331.26721299,0.00023178,9]
[334119340,1722784285184,-746.8875,0.00023178,9]
[334119341,1722784285201,-257.28353443,0.00023013,7]
[334119342,1722784285213,-950.64949057,0.00023013,7]
[334119343,1722784285223,-4098.94528701,0.00023178,9]
[334119344,1722784285232,-500.0,0.00023178,9]
[334119345,1722784285242,-500.0,0.00023178,9]
[334119346,1722784285252,-500.0,0.00023178,9]
[334119347,1722784285262,-500.0,0.00023178,9]
[334119348,1722784285271,-500.0,0.00023178,9]
[334119349,1722784285281,-500.0,0.00023178,9]
[334119350,1722784285290,-500.0,0.00023178,9]
[334119351,1722784285301,-566.38,0.00023178,9]
[334119352,1722784285311,-500.0,0.00023178,9]
[334119353,1722784285320,-500.0,0.00023178,9]
[334119354,1722784285330,-500.0,0.00023178,9]
[334119355,1722784285340,-500.0,0.00023178,9]
[334119356,1722784285350,-500.0,0.00023178,9]
[334119357,1722784285360,-500.0,0.00023178,9]
[334119358,1722784285370,-500.0,0.00023178,9]
[334119359,1722784285380,-1112.31,0.00023178,9]
[334119360,1722784285390,-827.37,0.00023178,9]
[334119361,1722784285400,-500.0,0.00023178,9]
[334119362,1722784285410,-500.0,0.00023178,9]
[334119363,1722784285420,-1963.64,0.00023178,9]
[334119364,1722784285429,-500.0,0.00023178,9]
[334119365,1722784285443,-500.0,0.00023178,9]
[334119366,1722784285454,-8930.70522242,0.00023178,9]
[334119367,1722784285466,-20096.82477758,0.00023178,9]
[334119368,1722784285493,-263.02514606,0.00023178,9]
[334119369,1722784285505,-236.97485394,0.00023178,9]
[334119370,1722784285517,-500.0,0.00023178,9]
[334119371,1722784285528,-952.7,0.00023178,9]
[334119372,1722784285538,-500.0,0.00023178,9]
[334119373,1722784285548,-696.89621136,0.00023178,9]
[334119375,1722784863386,-238.2,0.00025391,120]
[334119376,1722784863410,-500.0,0.00025893,120]
[334119377,1722784863437,-19455.51727767,0.00027,120]
[334119378,1722784865410,-480.08272233,0.00027,60]
[334119424,1722785435264,-300.0,0.000106,3]
[334119425,1722785435274,-700.0,0.000107,3]
[334119426,1722785435284,-1100.0,0.000108,3]
[334119427,1722785435293,-150.0,0.00010899,2]
[334119428,1722785435303,-1050.0,0.000109,3]
[334119429,1722785435315,-450.0,0.000109,3]
[334119430,1722785435331,-6499.17054274,0.000109,2]
[334119431,1722785435343,-599.375,0.000109,2]
[334119432,1722785435355,-5554.58209213,0.000109,2]
[334119433,1722785435365,-222.9761057,0.000109,2]
[334119434,1722785435374,-3454.78143834,0.000109,2]
[334119435,1722785435384,-215.16299926,0.000109,2]
[334119436,1722785435394,-169.40193675,0.000109,2]
[334119437,1722785435404,-153.35,0.0001099,2]
[334119438,1722785435416,-153.35,0.0001099,2]
[334119439,1722785435426,-153.35,0.0001099,2]
[334119440,1722785435436,-18464.06292129,0.00010997,2]
[334119441,1722785435446,-2929.5,0.00010999,2]
[334119442,1722785435456,-319.13470675,0.00010999,2]
[334119443,1722785435466,-255794.7923542,0.00011,2]
[334119444,1722785435479,-499.60047608,0.00011,2]
[334119445,1722785435490,-2780.22878475,0.00011,2]
[334119446,1722785435539,-317.41133,0.00011,2]
[334119448,1722785435551,-497.27420409,0.00011,2]
[334119449,1722785435563,-465.0,0.00011,2]
[334119450,1722785435582,-55103.63524192,0.00011,2]
[334119451,1722785435623,-2042.02712619,0.00011,2]
[334119452,1722785435635,-943.65948572,0.00011,2]
[334119464,1722785438024,-1590.0000001,0.00011,2]
[334119465,1722785438036,-3009.976,0.00011,2]
[334119466,1722785438047,-401.80496848,0.00011,2]
[334119467,1722785438163,-9995.44599795,0.00011,2]
[334119468,1722785438175,-2742.3918004,0.00011,2]
[334119469,1722785438186,-31687.49999994,0.00011,2]
[334119470,1722785438198,-3022.99999999,0.00011,2]
[334119471,1722785438209,-35459.79999956,0.00011,2]
[334119472,1722785438288,-2122.07830177,0.00011,2]
[334119479,1722785439504,-4445.0,0.00011,2]
[334119480,1722785439518,-7037.51276978,0.00011,2]
[334119481,1722785439530,-6867.8549825,0.00011,2]
[334119482,1722785439543,-7422.79429835,0.00011,2]
[334119483,1722785439554,-2173.28413778,0.00011,2]
[334119484,1722785439566,-314.18834352,0.00011,2]
[334119485,1722785439582,-1836.5905978,0.00011,2]
[334119486,1722785439595,-11427.99999992,0.00011,2]
[334119487,1722785439607,-437.70943335,0.00011,2]
[334119488,1722785439619,-603.72105927,0.00011,2]
[334119489,1722785439631,-436.62269378,0.00011,2]
[334119490,1722785439644,-366.962341,0.00011,2]
[334119491,1722785439655,-665.00000005,0.00011,2]
[334119513,1722785440246,-1997.0,0.00011,2]
[334119515,1722785440257,-291.86958069,0.00011,2]
[334119530,1722785443087,-479.1694232,0.00011,2]
[334119535,1722785443099,-668.34442602,0.00011,2]
[334119537,1722785443112,-3822.17155951,0.00011,2]
[334119540,1722785443124,-2691.1821066,0.00011,2]
[334119548,1722785443242,-10926.27474954,0.00011,2]
[334119549,1722785443254,-23156.47971275,0.00011,2]
[334119550,1722785443266,-14427.63032875,0.00011,2]
[334119551,1722785443277,-285.0,0.00011,2]
[334119552,1722785443288,-1951.24999987,0.00011,2]
[334119576,1722785443988,-2029.86568242,0.00011,2]
[334119578,1722785444000,-3100.09378254,0.00011,2]
[334119581,1722785444011,-3153.77131732,0.00011,2]
[334119583,1722785444022,-2532.53,0.00011,2]
[334119585,1722785444034,-1125.95213341,0.00011,2]
[334119590,1722785444069,-1381.28,0.00011,2]
[334119594,1722785444100,-345.8036654,0.00011,2]